[Event "Dvorkovich Memorial Rapid 2018"]
[Site "Taganrog"]
[Date "2018.01.14"]
[Round "7"]
[White "Demkovich, Anatoliy"]
[Black "Sipetin, Vladislav"]
[Result "1/2-1/2"]
[ECO "A13"]
[WhiteElo "2407"]
[BlackElo "2263"]
[Annotator "ChessBase"]
[PlyCount "97"]
[EventDate "2018.??.??"]
[EventType "swiss"]
[EventCountry "RUS"]
[SourceTitle "playchess.com"]
[Source "ChessBase"]
[SourceQuality "1"]
[TimeControl "900+10"]

1. Nf3 {[%emt 0:15:00]} d5 {[%emt 0:15:10]} 2. c4 {[%emt 0:00:10]} e6 {[%emt 0:00:10]} 3. e3 {[%emt 0:00:10]} Nf6 {[%emt 0:00:10]} 4. b3 {[%emt 0:00:10]} Be7 {[%emt 0:00:10]} 5. Bb2 {[%emt 0:00:10]} O-O {[%emt 0:00:10]} 6. Be2 {[%emt 0:00:10]} c5 {[%emt 0:00:10]} 7. O-O {[%emt 0:00:10]} Nc6 {[%emt 0:00:10]} 8. cxd5 {[%emt 0:00:10]} Nxd5 {[%emt 0:00:10]} 9. a3 {[%emt 0:00:10]} b6 {[%emt 0:00:10]} 10. d3 {[%emt 0:00:10]} Bb7 {[%emt 0:00:10]} 11. Nbd2 {[%emt 0:00:10]} Bf6 {[%emt 0:00:10]} 12. Bxf6 {[%emt 0:00:10]} Nxf6 {[%emt 0:00:10]} 13. Qc2 {[%emt 0:00:10]} Qd5 {[%emt 0:00:10]} 14. Rac1 {[%emt 0:00:10]} Rfd8 {[%emt 0:00:10]} 15. Rfd1 {[%emt 0:00:10]} Rac8 {[%emt 0:00:10]} 16. Qb2 {[%emt 0:00:10]} h6 {[%emt 0:00:10]} 17. Bf1 {[%emt 0:00:10]} Ne7 {[%emt 0:00:10]} 18. b4 {[%emt 0:00:10]} cxb4 {[%emt 0:00:10]} 19. axb4 {[%emt 0:00:10]} Rxc1 {[%emt 0:00:10]} 20. Rxc1 {[%emt 0:00:10]} Rc8 {[%emt 0:00:10]} 21. Ra1 {[%emt 0:00:10]} Nc6 {[%emt 0:00:10]} 22. b5 {[%emt 0:00:10]} Na5 {[%emt 0:00:10]} 23. Ne5 {[%emt 0:00:10]} Ra8 {[%emt 0:00:10]} 24. h3 {[%emt 0:00:10]} Nd7 {[%emt 0:00:10]} 25. Nxd7 {[%emt 0:00:10]} Qxd7 {[%emt 0:00:10]} 26. d4 {[%emt 0:00:10]} Rc8 {[%emt 0:00:10]} 27. Rc1 {[%emt 0:00:10]} Rxc1 {[%emt 0:00:10]} 28. Qxc1 {[%emt 0:00:10]} Qc8 {[%emt 0:00:10]} 29. Qxc8+ {[%emt 0:00:10]} Bxc8 {[%emt 0:00:10]} 30. Ne4 {[%emt 0:00:10]} Nb7 {[%emt 0:00:10]} 31. f3 {[%emt 0:00:10]} Kf8 {[%emt 0:00:10]} 32. Kf2 {[%emt 0:00:10]} Ke7 {[%emt 0:00:10]} 33. Nc3 {[%emt 0:00:10]} Nd6 {[%emt 0:00:10]} 34. e4 {[%emt 0:00:10]} Ne8 {[%emt 0:00:10]} 35. Ke3 {[%emt 0:00:10]} Nc7 {[%emt 0:00:10]} 36. Bc4 {[%emt 0:00:10]} a6 {[%emt 0:00:10]} 37. bxa6 {[%emt 0:00:10]} Bxa6 {[%emt 0:00:10]} 38. Bb3 {[%emt 0:00:10]} Bb5 {[%emt 0:00:10]} 39. h4 {[%emt 0:00:10]} g5 {[%emt 0:00:10]} 40. hxg5 {[%emt 0:00:10]} hxg5 {[%emt 0:00:10]} 41. g3 {[%emt 0:00:10]} Bd7 {[%emt 0:00:10]} 42. Na4 {[%emt 0:00:10]} Bxa4 {[%emt 0:00:10]} 43. Bxa4 {[%emt 0:00:10]} f6 {[%emt 0:00:10]} 44. f4 {[%emt 0:00:10]} gxf4+ {[%emt 0:00:10]} 45. Kxf4 {[%emt 0:00:10]} Kd6 {[%emt 0:00:10]} 46. Bb3 {[%emt 0:00:10]} Nb5 {[%emt 0:00:10]} 47. e5+ {[%emt 0:00:10]} Ke7 {[%emt 0:00:10]} 48. exf6+ {[%emt 0:00:10]} Kxf6 {[%emt 0:00:10]} 49. Ke3 {[%emt 0:00:10]} 1/2-1/2

[Event "Dvorkovich Memorial Rapid 2018"]
[Site "Taganrog"]
[Date "2018.01.14"]
[Round "7"]
[White "Tsoi, Dmitry"]
[Black "Gunchenko, Vadim"]
[Result "0-1"]
[ECO "A26"]
[WhiteElo "2371"]
[BlackElo "2338"]
[Annotator "ChessBase"]
[PlyCount "41"]
[EventDate "2018.??.??"]
[EventType "swiss"]
[EventCountry "RUS"]
[SourceTitle "playchess.com"]
[Source "ChessBase"]
[SourceQuality "1"]
[TimeControl "900+10"]

1. c4 {[%emt 0:00:00]} e5 {[%emt 0:00:22]} 2. g3 {[%emt 0:00:00]} Nc6 {[%emt 0:00:15]} 3. Bg2 {[%emt 0:00:00]} g6 {[%emt 0:00:00]} 4. Nc3 {[%emt 0:00:00]} Bg7 {[%emt 0:01:00]} 5. d3 {[%emt 0:00:00]} d6 {[%emt 0:00:00]} 6. Nf3 {[%emt 0:05:37]} Nf6 {[%emt 0:12:15]} 7. O-O {[%emt 0:00:00]} h6 {[%emt 0:00:00]} 8. Rb1 {[%emt 0:02:30]} a5 {[%emt 0:01:09]} 9. a3 {[%emt 0:00:32]} Be6 {[%emt 0:00:11]} 10. b4 {[%emt 0:00:44]} axb4 {[%emt 0:00:09]} 11. axb4 {[%emt 0:00:13]} Qd7 {[%emt 0:00:10]} 12. b5 {[%emt 0:00:23]} Nd8 {[%emt 0:00:11]} 13. Ne1 {[%emt 0:00:26]} O-O {[%emt 0:00:09]} 14. Nc2 {[%emt 0:00:15]} Bh3 {[%emt 0:00:10]} 15. Bh1 {[%emt 0:00:33]} Bxf1 {[%emt 0:00:11]} 16. Qxf1 {[%emt 0:00:24]} c6 {[%emt 0:00:10]} 17. Nb4 {[%emt 0:00:14]} cxb5 {[%emt 0:00:10]} 18. cxb5 {[%emt 0:00:26]} Ne6 {[%emt 0:00:10]} 19. Nbd5 {[%emt 0:00:25]} Nxd5 {[%emt 0:00:10]} 20. Nxd5 {[%emt 0:00:13]} Ra2 {[%emt 0:00:09]} 21. Bxh6 {[%emt 0:00:13]} 0-1

[Event "Dvorkovich Memorial Rapid 2018"]
[Site "Taganrog"]
[Date "2018.01.14"]
[Round "7"]
[White "Kamenets, Anatolij"]
[Black "Novoseltsev, Grigory"]
[Result "1-0"]
[ECO "D70"]
[WhiteElo "2294"]
[BlackElo "1936"]
[Annotator "ChessBase"]
[PlyCount "131"]
[EventDate "2018.??.??"]
[EventType "swiss"]
[EventCountry "RUS"]
[SourceTitle "playchess.com"]
[Source "ChessBase"]
[SourceQuality "1"]
[TimeControl "900+10"]

1. d4 {[%emt 0:00:00]} Nf6 {[%emt 0:00:00]} 2. c4 {[%emt 0:00:00]} g6 {[%emt 0:00:05]} 3. f3 {[%emt 0:00:00]} d5 {[%emt 0:00:03]} 4. cxd5 {[%emt 0:00:00]} Nxd5 {[%emt 0:00:00]} 5. e4 {[%emt 0:00:00]} Nb6 {[%emt 0:00:00]} 6. Nc3 {[%emt 0:00:00]} Bg7 {[%emt 0:00:00]} 7. Be3 {[%emt 0:00:00]} Nc6 {[%emt 0:00:04]} 8. d5 {[%emt 0:01:28]} Ne5 {[%emt 0:00:30]} 9. Bd4 {[%emt 0:01:14]} O-O {[%emt 0:00:39]} 10. f4 {[%emt 0:00:57]} Bg4 {[%emt 0:00:29]} 11. Be2 {[%emt 0:00:17]} Bxe2 {[%emt 0:00:11]} 12. Qxe2 {[%emt 0:01:25]} Ned7 {[%emt 0:00:21]} 13. Bxg7 {[%emt 0:01:52]} Kxg7 {[%emt 0:00:11]} 14. Nf3 {[%emt 0:00:03]} e6 {[%emt 0:02:28]} 15. O-O-O {[%emt 0:04:44]} exd5 {[%emt 0:00:03]} 16. Nxd5 {[%emt 0:00:28]} Nxd5 {[%emt 0:02:22]} 17. Rxd5 {[%emt 0:00:01]} Qe7 {[%emt 0:00:00]} 18. Rhd1 {[%emt 0:00:15]} Nb6 {[%emt 0:00:44]} 19. R5d4 {[%emt 0:00:23]} Rad8 {[%emt 0:00:15]} 20. Qd2 {[%emt 0:00:53]} Qc5+ {[%emt 0:02:28]} 21. Kb1 {[%emt 0:00:02]} Rxd4 {[%emt 0:01:32]} 22. Qxd4+ {[%emt 0:00:28]} Qxd4 {[%emt 0:00:12]} 23. Rxd4 {[%emt 0:00:00]} h5 {[%emt 0:00:14]} 24. b3 {[%emt 0:00:22]} Kf6 {[%emt 0:00:30]} 25. Kc2 {[%emt 0:00:24]} Ke6 {[%emt 0:00:15]} 26. Kc3 {[%emt 0:00:18]} c5 {[%emt 0:00:31]} 27. Rd2 {[%emt 0:00:23]} f6 {[%emt 0:00:12]} 28. a4 {[%emt 0:00:00]} Rc8 {[%emt 0:00:23]} 29. a5 {[%emt 0:00:05]} Nd7 {[%emt 0:00:00]} 30. Kc4 {[%emt 0:00:08]} Rc6 {[%emt 0:00:05]} 31. Rd5 {[%emt 0:00:35]} a6 {[%emt 0:00:00]} 32. f5+ {[%emt 0:00:48]} gxf5 {[%emt 0:00:17]} 33. Rxf5 {[%emt 0:00:00]} b5+ {[%emt 0:00:03]} 34. axb6 {[%emt 0:00:17]} Nxb6+ {[%emt 0:00:05]} 35. Kc3 {[%emt 0:00:03]} a5 {[%emt 0:00:06]} 36. Rxh5 {[%emt 0:00:22]} a4 {[%emt 0:00:02]} 37. bxa4 {[%emt 0:00:04]} Nxa4+ {[%emt 0:00:02]} 38. Kc4 {[%emt 0:00:11]} Rb6 {[%emt 0:00:25]} 39. Rh6 {[%emt 0:00:42]} Rb4+ {[%emt 0:00:02]} 40. Kd3 {[%emt 0:00:00]} c4+ {[%emt 0:00:04]} 41. Ke3 {[%emt 0:00:03]} Kf7 {[%emt 0:00:50]} 42. Rh7+ {[%emt 0:00:14]} Kg6 {[%emt 0:00:01]} 43. Rc7 {[%emt 0:00:03]} c3 {[%emt 0:00:12]} 44. Rc6 {[%emt 0:00:02]} Kg7 {[%emt 0:00:00]} 45. Nd4 {[%emt 0:00:04]} Rb2 {[%emt 0:00:15]} 46. Kf3 {[%emt 0:00:49]} Rd2 {[%emt 0:00:27]} 47. Rc4 {[%emt 0:00:33]} Nb2 {[%emt 0:00:12]} 48. Nf5+ {[%emt 0:00:04]} Kg6 {[%emt 0:00:15]} 49. Rxc3 {[%emt 0:00:09]} Nd1 {[%emt 0:00:00]} 50. Rc7 {[%emt 0:00:00]} Rf2+ {[%emt 0:00:05]} 51. Kg3 {[%emt 0:00:06]} Re2 {[%emt 0:00:09]} 52. Nh4+ {[%emt 0:01:24]} Kh6 {[%emt 0:00:12]} 53. Re7 {[%emt 0:00:30]} Kg5 {[%emt 0:00:11]} 54. Nf3+ {[%emt 0:00:02]} Kh5 {[%emt 0:00:04]} 55. h3 {[%emt 0:00:20]} Ne3 {[%emt 0:00:05]} 56. Kf4 {[%emt 0:00:31]} Nd5+ {[%emt 0:00:08]} 57. exd5 {[%emt 0:00:00]} Rxe7 {[%emt 0:00:03]} 58. Kf5 {[%emt 0:00:05]} Re2 {[%emt 0:00:19]} 59. g4+ {[%emt 0:00:26]} Kh6 {[%emt 0:00:05]} 60. d6 {[%emt 0:00:02]} Rf2 {[%emt 0:00:05]} 61. d7 {[%emt 0:00:00]} Rxf3+ {[%emt 0:00:08]} 62. Ke4 {[%emt 0:00:05]} Rxh3 {[%emt 0:00:03]} 63. d8=Q {[%emt 0:00:02]} Kg5 {[%emt 0:00:17]} 64. Qg8+ {[%emt 0:00:05]} Kh4 {[%emt 0:00:02]} 65. Qg6 {[%emt 0:00:10]} Rg3 {[%emt 0:00:10]} 66. Qh5# {[%emt 0:00:02]} 1-0

[Event "Dvorkovich Memorial Rapid 2018"]
[Site "Taganrog"]
[Date "2018.01.14"]
[Round "7"]
[White "Simonyan, Grigori"]
[Black "Ivlev, Aleksey"]
[Result "1-0"]
[ECO "C54"]
[WhiteElo "2075"]
[BlackElo "2300"]
[Annotator "ChessBase"]
[PlyCount "60"]
[EventDate "2018.??.??"]
[EventType "swiss"]
[EventCountry "RUS"]
[SourceTitle "playchess.com"]
[Source "ChessBase"]
[SourceQuality "1"]
[TimeControl "900+10"]

1. e4 {[%emt 0:00:00]} e5 {[%emt 0:01:54]} 2. Nf3 {[%emt 0:00:00]} Nc6 {[%emt 0:00:01]} 3. Bc4 {[%emt 0:00:00]} Bc5 {[%emt 0:00:11]} 4. O-O {[%emt 0:00:00]} Nf6 {[%emt 0:00:01]} 5. Re1 {[%emt 0:00:00]} O-O {[%emt 0:00:22]} 6. d3 {[%emt 0:00:00]} a6 {[%emt 0:00:01]} 7. c3 {[%emt 0:00:12]} d6 {[%emt 0:00:09]} 8. Bb3 {[%emt 0:00:23]} Ba7 {[%emt 0:00:12]} 9. Nbd2 {[%emt 0:03:46]} Be6 {[%emt 0:01:56]} 10. Nf1 {[%emt 0:00:13]} d5 {[%emt 0:00:10]} 11. exd5 {[%emt 0:00:44]} Bxd5 {[%emt 0:00:04]} 12. Nxe5 {[%emt 0:00:17]} Nxe5 {[%emt 0:00:10]} 13. Rxe5 {[%emt 0:00:22]} Bxb3 {[%emt 0:00:00]} 14. axb3 {[%emt 0:00:00]} Qd7 {[%emt 0:00:00]} 15. Be3 {[%emt 0:00:00]} Ng4 {[%emt 0:00:00]} 16. Rg5 {[%emt 0:00:29]} Nxe3 {[%emt 0:01:34]} 17. Nxe3 {[%emt 0:00:10]} h6 {[%emt 0:00:14]} 18. Qg4 {[%emt 0:00:11]} Qxg4 {[%emt 0:00:12]} 19. Rxg4 {[%emt 0:02:18]} Rad8 {[%emt 0:00:09]} 20. d4 {[%emt 0:00:00]} c5 {[%emt 0:00:56]} 21. d5 {[%emt 0:00:23]} f5 {[%emt 0:01:51]} 22. Rf4 {[%emt 0:00:47]} g6 {[%emt 0:00:15]} 23. c4 {[%emt 0:00:01]} Bb8 {[%emt 0:00:00]} 24. Rf3 {[%emt 0:00:00]} Rfe8 {[%emt 0:00:00]} 25. g3 {[%emt 0:00:31]} Re4 {[%emt 0:00:49]} 26. Kf1 {[%emt 0:00:39]} Rde8 {[%emt 0:00:25]} 27. Ra5 {[%emt 0:01:16]} Ba7 {[%emt 0:01:39]} 28. h3 {[%emt 0:00:56]} Bb6 {[%emt 0:00:35]} 29. Ra1 {[%emt 0:01:13]} Bc7 {[%emt 0:00:00]} 30. Rd1 {[%emt 0:00:06]} Bd6 {[%emt 0:00:05]} 1-0

[Event "Dvorkovich Memorial Rapid 2018"]
[Site "Taganrog"]
[Date "2018.01.14"]
[Round "7"]
[White "Bocharova, Ulyana"]
[Black "Kotenko, Pavel"]
[Result "0-1"]
[ECO "E63"]
[WhiteElo "1874"]
[BlackElo "2403"]
[Annotator "ChessBase"]
[PlyCount "71"]
[EventDate "2018.??.??"]
[EventType "swiss"]
[EventCountry "RUS"]
[SourceTitle "playchess.com"]
[Source "ChessBase"]
[SourceQuality "1"]
[TimeControl "900+10"]

1. c4 {[%emt 0:15:00]} Nf6 {[%emt 0:15:10]} 2. Nc3 {[%emt 0:00:10]} g6 {[%emt 0:00:10]} 3. Nf3 {[%emt 0:00:10]} Bg7 {[%emt 0:00:10]} 4. g3 {[%emt 0:00:10]} O-O {[%emt 0:00:10]} 5. Bg2 {[%emt 0:00:10]} d6 {[%emt 0:00:10]} 6. d4 {[%emt 0:00:10]} Nc6 {[%emt 0:00:10]} 7. O-O {[%emt 0:00:10]} a6 {[%emt 0:00:10]} 8. b3 {[%emt 0:00:10]} Rb8 {[%emt 0:00:10]} 9. a4 {[%emt 0:00:10]} a5 {[%emt 0:00:10]} 10. Bb2 {[%emt 0:00:10]} Bf5 {[%emt 0:00:10]} 11. Nh4 {[%emt 0:00:10]} Bd7 {[%emt 0:00:10]} 12. e4 {[%emt 0:00:10]} e5 {[%emt 0:00:10]} 13. dxe5 {[%emt 0:00:10]} dxe5 {[%emt 0:00:10]} 14. Nd5 {[%emt 0:00:10]} Be6 {[%emt 0:00:10]} 15. Qd2 {[%emt 0:00:10]} Nd7 {[%emt 0:00:10]} 16. Rad1 {[%emt 0:00:10]} b6 {[%emt 0:00:10]} 17. Nf3 {[%emt 0:00:10]} Nc5 {[%emt 0:00:10]} 18. Qe3 {[%emt 0:00:10]} Bd7 {[%emt 0:00:10]} 19. Rfe1 {[%emt 0:00:10]} Ne6 {[%emt 0:00:10]} 20. Rd2 {[%emt 0:00:10]} Ned4 {[%emt 0:00:10]} 21. Nxd4 {[%emt 0:00:10]} Nxd4 {[%emt 0:00:10]} 22. Red1 {[%emt 0:00:10]} Be6 {[%emt 0:00:10]} 23. f4 {[%emt 0:00:10]} c5 {[%emt 0:00:10]} 24. h3 {[%emt 0:00:10]} Qd6 {[%emt 0:00:10]} 25. Ba3 {[%emt 0:00:10]} Rbe8 {[%emt 0:00:10]} 26. Re1 {[%emt 0:00:10]} Kh8 {[%emt 0:00:10]} 27. Bb2 {[%emt 0:00:10]} f5 {[%emt 0:00:10]} 28. Kh1 {[%emt 0:00:10]} fxe4 {[%emt 0:00:10]} 29. fxe5 {[%emt 0:00:10]} Qxe5 {[%emt 0:00:10]} 30. Nf4 {[%emt 0:00:10]} Bc8 {[%emt 0:00:10]} 31. Qxe4 {[%emt 0:00:10]} Qxe4 {[%emt 0:00:10]} 32. Rxe4 {[%emt 0:00:10]} Nxb3 {[%emt 0:00:10]} 33. Bxg7+ {[%emt 0:00:10]} Kxg7 {[%emt 0:00:10]} 34. Rde2 {[%emt 0:00:10]} Rxe4 {[%emt 0:00:10]} 35. Rxe4 {[%emt 0:00:10]} Nd2 {[%emt 0:00:10]} 36. Re7+ {[%emt 0:00:10]} 0-1